[Event "Titled Tuesday Blitz March 29 Early 2022"]
[White "Garagulya, Konstantin"]
[Black "Pakleza, Zbigniew"]
[WhiteFideId "4128931"]
[BlackFideId "1119290"]
[WhiteElo "2329"]
[BlackElo "2467"]
[Result "1/2-1/2"]
[Round "03"]
[TimeControl "180+1"]
[Date "2022.03.29"]
[WhiteClock "0:00:16"]
[BlackClock "0:00:13"]

1. d4 {[%clk 0:02:55]}  d6 {[%clk 0:02:55]} 2. e4 {[%clk 0:02:54]}  Nf6 {[%clk 0:02:55]} 3. Nc3 {[%clk 0:02:54]}  c6 {[%clk 0:02:55]} 4. Nf3 {[%clk 0:02:54]}  Bg4 {[%clk 0:02:55]} 5. h3 {[%clk 0:02:54]}  Bh5 {[%clk 0:02:55]} 6. Be2 {[%clk 0:02:54]}  e6 {[%clk 0:02:55]} 7. O-O {[%clk 0:02:55]}  Be7 {[%clk 0:02:55]} 8. Be3 {[%clk 0:02:55]}  d5 {[%clk 0:02:55]} 9. exd5 {[%clk 0:02:50]}  cxd5 {[%clk 0:02:56]} 10. Ne5 {[%clk 0:02:48]}  Bxe2 {[%clk 0:02:56]} 11. Nxe2 {[%clk 0:02:38]}  O-O {[%clk 0:02:57]} 12. Nf4 {[%clk 0:02:37]}  Nc6 {[%clk 0:02:55]} 13. Nfd3 {[%clk 0:02:35]}  Qb6 {[%clk 0:02:44]} 14. c3 {[%clk 0:02:30]}  Rfd8 {[%clk 0:02:34]} 15. Qb3 {[%clk 0:02:30]}  Qa6 {[%clk 0:02:25]} 16. f3 {[%clk 0:02:22]}  Nd7 {[%clk 0:02:16]} 17. Nxd7 {[%clk 0:02:18]}  Rxd7 {[%clk 0:02:17]} 18. Rad1 {[%clk 0:02:00]}  Na5 {[%clk 0:02:07]} 19. Qc2 {[%clk 0:02:00]}  Nc4 {[%clk 0:02:07]} 20. Bf4 {[%clk 0:02:01]}  Rc8 {[%clk 0:01:59]} 21. Rfe1 {[%clk 0:01:58]}  b5 {[%clk 0:01:43]} 22. b3 {[%clk 0:01:38]}  Nb6 {[%clk 0:01:14]} 23. b4 {[%clk 0:01:36]}  Qa4 {[%clk 0:01:05]} 24. Re2 {[%clk 0:01:25]}  Qxc2 {[%clk 0:00:43]} 25. Rxc2 {[%clk 0:01:23]}  Nc4 {[%clk 0:00:35]} 26. Nc5 {[%clk 0:01:15]}  Bxc5 {[%clk 0:00:35]} 27. bxc5 {[%clk 0:01:09]}  f6 {[%clk 0:00:32]} 28. a4 {[%clk 0:00:53]}  bxa4 {[%clk 0:00:31]} 29. Ra1 {[%clk 0:00:44]}  a3 {[%clk 0:00:31]} 30. Bc1 {[%clk 0:00:45]}  Rc6 {[%clk 0:00:29]} 31. Bxa3 {[%clk 0:00:44]}  Ra6 {[%clk 0:00:27]} 32. Rca2 {[%clk 0:00:44]}  Rb7 {[%clk 0:00:27]} 33. Bb4 {[%clk 0:00:44]}  Rxa2 {[%clk 0:00:23]} 34. Rxa2 {[%clk 0:00:45]}  a5 {[%clk 0:00:23]} 35. Bxa5 {[%clk 0:00:38]}  Ra7 {[%clk 0:00:23]} 36. c6 {[%clk 0:00:38]}  Nxa5 {[%clk 0:00:23]} 37. c7 {[%clk 0:00:38]}  Rxc7 {[%clk 0:00:23]} 38. Rxa5 {[%clk 0:00:37]}  Rxc3 {[%clk 0:00:24]} 39. Ra8+ {[%clk 0:00:30]}  Kf7 {[%clk 0:00:24]} 40. Ra7+ {[%clk 0:00:31]}  Kf8 {[%clk 0:00:23]} 41. Ra8+ {[%clk 0:00:30]}  Kf7 {[%clk 0:00:16]} 42. Ra7+ {[%clk 0:00:31]}  Kg6 {[%clk 0:00:16]} 43. Re7 {[%clk 0:00:32]}  Rd3 {[%clk 0:00:13]} 44. Rxe6 {[%clk 0:00:31]}  Rxd4 {[%clk 0:00:14]} 45. Kf2 {[%clk 0:00:29]}  Rd2+ {[%clk 0:00:14]} 46. Kg3 {[%clk 0:00:26]}  h5 {[%clk 0:00:13]} 47. h4 {[%clk 0:00:26]}  Kf5 {[%clk 0:00:12]} 48. Rd6 {[%clk 0:00:26]}  g5 {[%clk 0:00:12]} 49. Rd8 {[%clk 0:00:22]}  d4 {[%clk 0:00:11]} 50. hxg5 {[%clk 0:00:19]}  fxg5 {[%clk 0:00:12]} 51. Rd5+ {[%clk 0:00:19]}  Kf6 {[%clk 0:00:12]} 52. Rd6+ {[%clk 0:00:19]}  Ke5 {[%clk 0:00:12]} 53. Rg6 {[%clk 0:00:19]}  Kf5 {[%clk 0:00:12]} 54. Rd6 {[%clk 0:00:20]}  d3 {[%clk 0:00:13]} 55. Rd5+ {[%clk 0:00:19]}  Kf6 {[%clk 0:00:13]} 56. Rd6+ {[%clk 0:00:18]}  Ke5 {[%clk 0:00:14]} 57. Rg6 {[%clk 0:00:18]}  Kf5 {[%clk 0:00:14]} 58. Rd6 {[%clk 0:00:19]}  h4+ {[%clk 0:00:13]} 59. Kh3 {[%clk 0:00:18]}  Rd1 {[%clk 0:00:13]} 60. Kh2 {[%clk 0:00:17]}  d2 {[%clk 0:00:13]} 61. Rd8 {[%clk 0:00:15]}  Kf4 {[%clk 0:00:12]} 62. Rd7 {[%clk 0:00:13]}  Ke3 {[%clk 0:00:12]} 63. Re7+ {[%clk 0:00:12]}  Kf2 {[%clk 0:00:13]} 64. Rd7 {[%clk 0:00:13]}  Kf1 {[%clk 0:00:14]} 65. Rd6 {[%clk 0:00:12]}  Ke2 {[%clk 0:00:13]} 66. Re6+ {[%clk 0:00:12]}  Kf2 {[%clk 0:00:13]} 67. Rd6 {[%clk 0:00:13]}  h3 {[%clk 0:00:09]} 68. gxh3 {[%clk 0:00:12]}  Kxf3 {[%clk 0:00:10]} 69. Rf6+ {[%clk 0:00:12]}  Ke4 {[%clk 0:00:10]} 70. Rd6 {[%clk 0:00:11]}  Kf4 {[%clk 0:00:10]} 71. Rd8 {[%clk 0:00:11]}  Ke3 {[%clk 0:00:10]} 72. Re8+ {[%clk 0:00:12]}  Kf3 {[%clk 0:00:10]} 73. Rf8+ {[%clk 0:00:12]}  Ke4 {[%clk 0:00:09]} 74. Re8+ {[%clk 0:00:13]}  Kd3 {[%clk 0:00:09]} 75. Rd8+ {[%clk 0:00:13]}  Kc3 {[%clk 0:00:10]} 76. Rc8+ {[%clk 0:00:13]}  Kb4 {[%clk 0:00:11]} 77. Rb8+ {[%clk 0:00:13]}  Kc5 {[%clk 0:00:11]} 78. Rd8 {[%clk 0:00:14]}  Kc4 {[%clk 0:00:11]} 79. Rc8+ {[%clk 0:00:14]}  Kd3 {[%clk 0:00:11]} 80. Rd8+ {[%clk 0:00:14]}  Ke3 {[%clk 0:00:11]} 81. Re8+ {[%clk 0:00:15]}  Kf2 {[%clk 0:00:10]} 82. Rf8+ {[%clk 0:00:15]}  Ke1 {[%clk 0:00:10]} 83. Re8+ {[%clk 0:00:15]}  Kf1 {[%clk 0:00:11]} 84. Rf8+ {[%clk 0:00:15]}  Ke2 {[%clk 0:00:12]} 85. Re8+ {[%clk 0:00:16]}  Kd3 {[%clk 0:00:13]} 86. Rd8+ {[%clk 0:00:16]} 1/2-1/2


[Site "https://www.chess.com"]

[Event "Titled Tuesday Blitz March 29 Early 2022"]
[White "Golubev, Mikhail"]
[Black "Einarsson, Halldor Gretar"]
[WhiteFideId "14100983"]
[BlackFideId "2300150"]
[WhiteElo "2374"]
[BlackElo "2114"]
[Result "1-0"]
[Round "03"]
[TimeControl "180+1"]
[Date "2022.03.30"]
[WhiteClock "0:00:04"]
[BlackClock "0:00:03"]

1. e4 {[%clk 0:03:00]}  e5 {[%clk 0:02:59]} 2. Nf3 {[%clk 0:03:00]}  Nc6 {[%clk 0:02:58]} 3. Bb5 {[%clk 0:03:00]}  Nf6 {[%clk 0:02:57]} 4. O-O {[%clk 0:02:59]}  Nxe4 {[%clk 0:02:57]} 5. Re1 {[%clk 0:02:57]}  Nd6 {[%clk 0:02:53]} 6. Bf1 {[%clk 0:02:54]}  Be7 {[%clk 0:02:49]} 7. Nc3 {[%clk 0:02:49]}  f6 {[%clk 0:02:36]} 8. d4 {[%clk 0:02:38]}  exd4 {[%clk 0:02:30]} 9. Nd5 {[%clk 0:02:29]}  O-O {[%clk 0:02:27]} 10. Nxd4 {[%clk 0:02:11]}  Re8 {[%clk 0:02:03]} 11. Bf4 {[%clk 0:02:03]}  Bf8 {[%clk 0:01:29]} 12. Rxe8 {[%clk 0:01:30]}  Nxe8 {[%clk 0:01:26]} 13. Bc4 {[%clk 0:01:26]}  Kh8 {[%clk 0:01:19]} 14. Nxc6 {[%clk 0:00:12]}  bxc6 {[%clk 0:01:17]} 15. Qd3 {[%clk 0:00:08]}  Bb7 {[%clk 0:00:59]} 16. Ne3 {[%clk 0:00:05]}  d5 {[%clk 0:00:53]} 17. Ba6 {[%clk 0:00:05]}  Qc8 {[%clk 0:00:47]} 18. Bxb7 {[%clk 0:00:04]}  Qxb7 {[%clk 0:00:46]} 19. b3 {[%clk 0:00:04]}  Nd6 {[%clk 0:00:44]} 20. Bxd6 {[%clk 0:00:02]}  Bxd6 {[%clk 0:00:42]} 21. c3 {[%clk 0:00:03]}  Re8 {[%clk 0:00:40]} 22. g3 {[%clk 0:00:02]}  Qc8 {[%clk 0:00:28]} 23. Rd1 {[%clk 0:00:02]}  Qe6 {[%clk 0:00:25]} 24. c4 {[%clk 0:00:02]}  dxc4 {[%clk 0:00:19]} 25. Nxc4 {[%clk 0:00:03]}  Bc5 {[%clk 0:00:18]} 26. Qf3 {[%clk 0:00:01]}  Bb6 {[%clk 0:00:12]} 27. Rf1 {[%clk 0:00:01]}  h6 {[%clk 0:00:12]} 28. Kg2 {[%clk 0:00:01]}  Qe4 {[%clk 0:00:10]} 29. Rd1 {[%clk 0:00:01]}  Qxf3+ {[%clk 0:00:10]} 30. Kxf3 {[%clk 0:00:02]}  Kg8 {[%clk 0:00:09]} 31. Rd7 {[%clk 0:00:01]}  Kf8 {[%clk 0:00:08]} 32. Nxb6 {[%clk 0:00:01]}  cxb6 {[%clk 0:00:07]} 33. Rxa7 {[%clk 0:00:02]}  Rd8 {[%clk 0:00:06]} 34. Ra6 {[%clk 0:00:01]}  Rb8 {[%clk 0:00:05]} 35. Ke4 {[%clk 0:00:01]}  Ke7 {[%clk 0:00:05]} 36. Kf5 {[%clk 0:00:02]}  Kd6 {[%clk 0:00:05]} 37. Kg6 {[%clk 0:00:02]}  Rb7 {[%clk 0:00:05]} 38. Ra8 {[%clk 0:00:02]}  Kc5 {[%clk 0:00:05]} 39. Rg8 {[%clk 0:00:01]}  Kb4 {[%clk 0:00:04]} 40. Rxg7 {[%clk 0:00:02]}  Rb8 {[%clk 0:00:04]} 41. Kxf6 {[%clk 0:00:02]}  c5 {[%clk 0:00:03]} 42. Kg6 {[%clk 0:00:02]}  b5 {[%clk 0:00:03]} 43. Rc7 {[%clk 0:00:03]}  c4 {[%clk 0:00:03]} 44. bxc4 {[%clk 0:00:02]}  bxc4 {[%clk 0:00:03]} 45. f4 {[%clk 0:00:02]}  c3 {[%clk 0:00:03]} 46. f5 {[%clk 0:00:03]}  Rb5 {[%clk 0:00:03]} 47. f6 {[%clk 0:00:03]}  Rc5 {[%clk 0:00:03]} 48. Rxc5 {[%clk 0:00:02]}  Kxc5 {[%clk 0:00:03]} 49. f7 {[%clk 0:00:03]}  c2 {[%clk 0:00:03]} 50. f8=Q+ {[%clk 0:00:04]} 1-0


[Site "https://www.chess.com"]

[Event "Titled Tuesday Blitz March 29 Early 2022"]
[White "Dronavalli, Harika"]
[Black "Pourkashiyan, Atousa"]
[WhiteFideId "5015197"]
[BlackFideId "12502014"]
[WhiteElo "2382"]
[BlackElo "2247"]
[Result "1-0"]
[Round "03"]
[TimeControl "180+1"]
[Date "2022.03.30"]
[WhiteClock "0:00:49"]
[BlackClock "0:00:10"]

1. d4 {[%clk 0:03:00]}  Nf6 {[%clk 0:01:30]} 2. c4 {[%clk 0:03:00]}  e6 {[%clk 0:01:28]} 3. Nc3 {[%clk 0:03:00]}  Bb4 {[%clk 0:01:27]} 4. Bd2 {[%clk 0:02:58]}  O-O {[%clk 0:01:26]} 5. e3 {[%clk 0:02:58]}  d5 {[%clk 0:01:26]} 6. Nf3 {[%clk 0:02:58]}  c5 {[%clk 0:01:26]} 7. Rc1 {[%clk 0:02:55]}  Nc6 {[%clk 0:01:25]} 8. a3 {[%clk 0:02:53]}  cxd4 {[%clk 0:01:24]} 9. axb4 {[%clk 0:02:48]}  dxc3 {[%clk 0:01:24]} 10. Bxc3 {[%clk 0:02:27]}  dxc4 {[%clk 0:01:24]} 11. b5 {[%clk 0:02:21]}  Ne7 {[%clk 0:01:16]} 12. Bxc4 {[%clk 0:02:20]}  Qxd1+ {[%clk 0:01:14]} 13. Rxd1 {[%clk 0:02:20]}  Ned5 {[%clk 0:01:14]} 14. Bd4 {[%clk 0:02:07]}  Bd7 {[%clk 0:01:10]} 15. Ne5 {[%clk 0:02:00]}  Rfd8 {[%clk 0:01:10]} 16. Ke2 {[%clk 0:01:48]}  Be8 {[%clk 0:01:10]} 17. f3 {[%clk 0:01:45]}  Rac8 {[%clk 0:01:00]} 18. Rc1 {[%clk 0:01:44]}  Nb6 {[%clk 0:00:52]} 19. Bxb6 {[%clk 0:01:38]}  axb6 {[%clk 0:00:52]} 20. Rhd1 {[%clk 0:01:32]}  Nd7 {[%clk 0:00:39]} 21. Nxd7 {[%clk 0:01:17]}  Rxd7 {[%clk 0:00:28]} 22. b3 {[%clk 0:01:13]}  Kf8 {[%clk 0:00:24]} 23. Ra1 {[%clk 0:01:01]}  Rxd1 {[%clk 0:00:22]} 24. Kxd1 {[%clk 0:01:00]}  Rc5 {[%clk 0:00:20]} 25. Ra8 {[%clk 0:00:58]}  Ke7 {[%clk 0:00:20]} 26. Rb8 {[%clk 0:00:58]}  Bxb5 {[%clk 0:00:19]} 27. Rxb7+ {[%clk 0:00:58]}  Kf6 {[%clk 0:00:20]} 28. Bxb5 {[%clk 0:00:55]}  Rxb5 {[%clk 0:00:20]} 29. Kc2 {[%clk 0:00:56]}  h5 {[%clk 0:00:18]} 30. Kc3 {[%clk 0:00:56]}  Rc5+ {[%clk 0:00:17]} 31. Kd3 {[%clk 0:00:56]}  Rb5 {[%clk 0:00:16]} 32. Kc3 {[%clk 0:00:52]}  Rc5+ {[%clk 0:00:16]} 33. Kb2 {[%clk 0:00:53]}  h4 {[%clk 0:00:16]} 34. Rxb6 {[%clk 0:00:50]}  g5 {[%clk 0:00:12]} 35. Rb4 {[%clk 0:00:49]}  Kf5 {[%clk 0:00:10]} 36. Rc4 {[%clk 0:00:49]}  Rd5 {[%clk 0:00:10]} 37. e4+ {[%clk 0:00:49]} 1-0


[Site "https://www.chess.com"]

[Event "Titled Tuesday Blitz March 29 Early 2022"]
[White "Hartikainen, Jarmo"]
[Black "Buscar, Michael"]
[WhiteFideId "503134"]
[BlackFideId "2603616"]
[WhiteElo "2068"]
[BlackElo "2010"]
[Result "0-1"]
[Round "03"]
[TimeControl "180+1"]
[Date "2022.03.30"]
[WhiteClock "0:00:09"]
[BlackClock "0:02:09"]

1. e4 {[%clk 0:03:00]}  c5 {[%clk 0:02:59]} 2. Nf3 {[%clk 0:03:00]}  e6 {[%clk 0:02:59]} 3. d4 {[%clk 0:03:00]}  cxd4 {[%clk 0:02:59]} 4. Nxd4 {[%clk 0:03:01]}  Nc6 {[%clk 0:03:00]} 5. Nc3 {[%clk 0:03:01]}  Qc7 {[%clk 0:02:59]} 6. Be3 {[%clk 0:02:56]}  a6 {[%clk 0:02:58]} 7. g3 {[%clk 0:02:55]}  Nf6 {[%clk 0:02:51]} 8. Bg2 {[%clk 0:02:55]}  d6 {[%clk 0:02:50]} 9. O-O {[%clk 0:02:54]}  Be7 {[%clk 0:02:51]} 10. h3 {[%clk 0:02:39]}  O-O {[%clk 0:02:51]} 11. Nde2 {[%clk 0:02:37]}  b5 {[%clk 0:02:48]} 12. a3 {[%clk 0:02:36]}  Bb7 {[%clk 0:02:48]} 13. Qd2 {[%clk 0:02:02]}  Ne5 {[%clk 0:02:46]} 14. b3 {[%clk 0:02:00]}  Rac8 {[%clk 0:02:46]} 15. Rad1 {[%clk 0:01:57]}  Rfd8 {[%clk 0:02:45]} 16. f4 {[%clk 0:01:55]}  Ng6 {[%clk 0:02:32]} 17. Bd4 {[%clk 0:01:11]}  d5 {[%clk 0:02:28]} 18. Qe3 {[%clk 0:01:08]}  Nxe4 {[%clk 0:02:20]} 19. Bb6 {[%clk 0:00:51]}  Bc5 {[%clk 0:02:20]} 20. Qxc5 {[%clk 0:00:31]}  Qxc5+ {[%clk 0:02:14]} 21. Bxc5 {[%clk 0:00:31]}  Nxc3 {[%clk 0:02:14]} 22. Nxc3 {[%clk 0:00:25]}  Rxc5 {[%clk 0:02:14]} 23. Rd3 {[%clk 0:00:19]}  Rdc8 {[%clk 0:02:13]} 24. Rff3 {[%clk 0:00:09]}  d4 {[%clk 0:02:09]} 0-1


[Site "https://www.chess.com"]

[Event "Titled Tuesday Blitz March 29 Early 2022"]
[White "Horak, Martin"]
[Black "Delorme, Alban"]
[WhiteFideId "367095"]
[BlackFideId "623636"]
[WhiteElo "1997"]
[BlackElo "2197"]
[Result "1-0"]
[Round "03"]
[TimeControl "180+1"]
[Date "2022.03.30"]
[WhiteClock "0:00:44"]
[BlackClock "0:00:17"]

1. d4 {[%clk 0:03:00]}  Nf6 {[%clk 0:02:58]} 2. Bg5 {[%clk 0:03:00]}  Ne4 {[%clk 0:02:58]} 3. h4 {[%clk 0:02:59]}  d5 {[%clk 0:02:50]} 4. Nd2 {[%clk 0:02:59]}  Nxg5 {[%clk 0:02:45]} 5. hxg5 {[%clk 0:02:58]}  Bf5 {[%clk 0:02:46]} 6. e3 {[%clk 0:02:53]}  e6 {[%clk 0:02:45]} 7. f4 {[%clk 0:02:46]}  Nd7 {[%clk 0:02:42]} 8. g4 {[%clk 0:02:31]}  Bg6 {[%clk 0:02:33]} 9. Ngf3 {[%clk 0:02:29]}  c5 {[%clk 0:02:21]} 10. c3 {[%clk 0:02:29]}  Qb6 {[%clk 0:02:14]} 11. Qb3 {[%clk 0:02:23]}  c4 {[%clk 0:02:13]} 12. Qxb6 {[%clk 0:02:07]}  axb6 {[%clk 0:02:14]} 13. a3 {[%clk 0:02:04]}  b5 {[%clk 0:02:10]} 14. Rc1 {[%clk 0:02:03]}  Nb6 {[%clk 0:02:06]} 15. Nh4 {[%clk 0:02:00]}  Bd3 {[%clk 0:01:45]} 16. Nhf3 {[%clk 0:01:52]}  Bxf1 {[%clk 0:01:44]} 17. Kxf1 {[%clk 0:01:51]}  Bd6 {[%clk 0:01:39]} 18. Ne5 {[%clk 0:01:48]}  Bxe5 {[%clk 0:01:36]} 19. dxe5 {[%clk 0:01:48]}  Nd7 {[%clk 0:01:35]} 20. Nf3 {[%clk 0:01:43]}  Nc5 {[%clk 0:01:29]} 21. Nd4 {[%clk 0:01:43]}  Nd3 {[%clk 0:01:26]} 22. Rc2 {[%clk 0:01:40]}  Ra5 {[%clk 0:01:16]} 23. g6 {[%clk 0:01:40]}  h6 {[%clk 0:01:13]} 24. g5 {[%clk 0:01:27]}  fxg6 {[%clk 0:00:54]} 25. Nxe6 {[%clk 0:01:19]}  Kf7 {[%clk 0:00:53]} 26. Nc7 {[%clk 0:01:08]}  b4 {[%clk 0:00:42]} 27. axb4 {[%clk 0:01:04]}  Ra1+ {[%clk 0:00:41]} 28. Kg2 {[%clk 0:01:04]}  hxg5 {[%clk 0:00:41]} 29. Rxa1 {[%clk 0:01:03]}  gxf4 {[%clk 0:00:31]} 30. exf4 {[%clk 0:01:03]}  Nxf4+ {[%clk 0:00:29]} 31. Kg3 {[%clk 0:01:02]}  g5 {[%clk 0:00:29]} 32. Rd1 {[%clk 0:00:57]}  Rh3+ {[%clk 0:00:28]} 33. Kg4 {[%clk 0:00:57]}  Kg6 {[%clk 0:00:27]} 34. Nxd5 {[%clk 0:00:52]}  Rh4+ {[%clk 0:00:24]} 35. Kf3 {[%clk 0:00:53]}  Nd3 {[%clk 0:00:19]} 36. Rxd3 {[%clk 0:00:48]}  cxd3 {[%clk 0:00:19]} 37. Rd2 {[%clk 0:00:48]}  Kf5 {[%clk 0:00:18]} 38. Ne3+ {[%clk 0:00:46]}  Kxe5 {[%clk 0:00:17]} 39. Rxd3 {[%clk 0:00:47]}  Rh2 {[%clk 0:00:17]} 40. Ng4+ {[%clk 0:00:44]} 1-0


[Site "https://www.chess.com"]

[Event "Titled Tuesday Blitz March 29 Early 2022"]
[White "Khripachenko, Alexander"]
[Black "Fajdetic, Hrvoje"]
[WhiteFideId "54184975"]
[BlackFideId "14501945"]
[WhiteElo "2177"]
[BlackElo "2172"]
[Result "0-1"]
[Round "03"]
[TimeControl "180+1"]
[Date "2022.03.30"]
[WhiteClock "0:01:13"]
[BlackClock "0:00:06"]

1. e4 {[%clk 0:03:00]}  e6 {[%clk 0:02:53]} 2. d4 {[%clk 0:02:59]}  d5 {[%clk 0:02:53]} 3. Nd2 {[%clk 0:02:59]}  dxe4 {[%clk 0:02:53]} 4. Nxe4 {[%clk 0:02:59]}  Nd7 {[%clk 0:02:54]} 5. Nf3 {[%clk 0:02:59]}  Ngf6 {[%clk 0:02:54]} 6. Nxf6+ {[%clk 0:03:00]}  Nxf6 {[%clk 0:02:55]} 7. g3 {[%clk 0:03:00]}  b6 {[%clk 0:02:51]} 8. Bg2 {[%clk 0:02:57]}  Bb7 {[%clk 0:02:51]} 9. O-O {[%clk 0:02:58]}  Bd6 {[%clk 0:02:46]} 10. Qe2 {[%clk 0:02:57]}  O-O {[%clk 0:02:45]} 11. b3 {[%clk 0:02:58]}  a5 {[%clk 0:02:43]} 12. a4 {[%clk 0:02:55]}  Ra7 {[%clk 0:02:41]} 13. Bb2 {[%clk 0:02:55]}  Qa8 {[%clk 0:02:40]} 14. c4 {[%clk 0:02:55]}  Rd8 {[%clk 0:02:26]} 15. Rfd1 {[%clk 0:02:54]}  Nd7 {[%clk 0:02:15]} 16. Ne1 {[%clk 0:02:53]}  Bxg2 {[%clk 0:02:13]} 17. Nxg2 {[%clk 0:02:54]}  c5 {[%clk 0:02:10]} 18. d5 {[%clk 0:02:52]}  Nf8 {[%clk 0:02:06]} 19. Ne3 {[%clk 0:02:50]}  Re7 {[%clk 0:01:42]} 20. Qg4 {[%clk 0:02:48]}  Ng6 {[%clk 0:01:40]} 21. h4 {[%clk 0:02:45]}  Be5 {[%clk 0:01:35]} 22. Bxe5 {[%clk 0:02:43]}  Nxe5 {[%clk 0:01:36]} 23. Qe4 {[%clk 0:02:43]}  exd5 {[%clk 0:01:21]} 24. Nxd5 {[%clk 0:02:42]}  Re6 {[%clk 0:01:21]} 25. Re1 {[%clk 0:02:38]}  Rde8 {[%clk 0:01:08]} 26. Kg2 {[%clk 0:02:03]}  Nxc4 {[%clk 0:00:50]} 27. Qf3 {[%clk 0:02:01]}  Nd2 {[%clk 0:00:40]} 28. Qd3 {[%clk 0:01:59]}  Nxb3 {[%clk 0:00:28]} 29. Rxe6 {[%clk 0:01:56]}  fxe6 {[%clk 0:00:26]} 30. Re1 {[%clk 0:01:56]}  Rd8 {[%clk 0:00:18]} 31. Qxb3 {[%clk 0:01:42]}  Qxd5+ {[%clk 0:00:18]} 32. Qxd5 {[%clk 0:01:42]}  exd5 {[%clk 0:00:19]} 33. Re6 {[%clk 0:01:43]}  d4 {[%clk 0:00:19]} 34. Kf1 {[%clk 0:01:42]}  Rb8 {[%clk 0:00:14]} 35. Ke2 {[%clk 0:01:41]}  b5 {[%clk 0:00:13]} 36. axb5 {[%clk 0:01:42]}  Rxb5 {[%clk 0:00:13]} 37. Re7 {[%clk 0:01:41]}  a4 {[%clk 0:00:12]} 38. Ra7 {[%clk 0:01:41]}  Rb2+ {[%clk 0:00:12]} 39. Kd3 {[%clk 0:01:39]}  Rxf2 {[%clk 0:00:12]} 40. h5 {[%clk 0:01:38]}  Rf3+ {[%clk 0:00:11]} 41. Kc4 {[%clk 0:01:38]}  Rc3+ {[%clk 0:00:11]} 42. Kd5 {[%clk 0:01:38]}  d3 {[%clk 0:00:12]} 43. Ke6 {[%clk 0:01:38]}  h6 {[%clk 0:00:12]} 44. Rd7 {[%clk 0:01:35]}  c4 {[%clk 0:00:12]} 45. Kf5 {[%clk 0:01:35]}  Rc2 {[%clk 0:00:10]} 46. Kg6 {[%clk 0:01:35]}  Kf8 {[%clk 0:00:10]} 47. Rxg7 {[%clk 0:01:36]}  Rf2 {[%clk 0:00:09]} 48. Rd7 {[%clk 0:01:34]}  Ke8 {[%clk 0:00:09]} 49. Rd4 {[%clk 0:01:33]}  d2 {[%clk 0:00:10]} 50. Kxh6 {[%clk 0:01:25]}  c3 {[%clk 0:00:10]} 51. Kg7 {[%clk 0:01:25]}  c2 {[%clk 0:00:10]} 52. h6 {[%clk 0:01:24]}  c1=Q {[%clk 0:00:09]} 53. h7 {[%clk 0:01:23]}  Rh2 {[%clk 0:00:09]} 54. Re4+ {[%clk 0:01:17]}  Kd7 {[%clk 0:00:09]} 55. Rd4+ {[%clk 0:01:16]}  Ke6 {[%clk 0:00:09]} 56. Kg8 {[%clk 0:01:14]}  Qc8+ {[%clk 0:00:07]} 57. Rd8 {[%clk 0:01:13]}  Qxd8+ {[%clk 0:00:07]} 58. Kg7 {[%clk 0:01:13]}  Rxh7+ {[%clk 0:00:07]} 59. Kg6 {[%clk 0:01:13]}  Rg7+ {[%clk 0:00:06]} 60. Kxg7 {[%clk 0:01:13]}  Qg5+ {[%clk 0:00:07]} 61. Kh7 {[%clk 0:01:13]}  Qxg3 {[%clk 0:00:07]} 62. Kh6 {[%clk 0:01:12]}  Kf6 {[%clk 0:00:07]} 63. Kh7 {[%clk 0:01:13]}  Qg7# {[%clk 0:00:06]} 0-1


[Site "https://www.chess.com"]

[Event "Titled Tuesday Blitz March 29 Early 2022"]
[White "Kiltti, Jyrki"]
[Black "San, Thit Lwin"]
[WhiteFideId "501204"]
[BlackFideId "13001272"]
[WhiteElo "2245"]
[BlackElo "2232"]
[Result "1-0"]
[Round "03"]
[TimeControl "180+1"]
[Date "2022.03.30"]
[WhiteClock "0:01:56"]
[BlackClock "0:01:17"]

1. Nc3 {[%clk 0:03:00]}  Nf6 {[%clk 0:02:59]} 2. f4 {[%clk 0:02:54]}  d5 {[%clk 0:02:57]} 3. d3 {[%clk 0:02:54]}  Bf5 {[%clk 0:02:57]} 4. e3 {[%clk 0:02:51]}  c5 {[%clk 0:02:56]} 5. Nf3 {[%clk 0:02:50]}  Nc6 {[%clk 0:02:57]} 6. g3 {[%clk 0:02:48]}  e6 {[%clk 0:02:57]} 7. Bg2 {[%clk 0:02:48]}  Bd6 {[%clk 0:02:57]} 8. O-O {[%clk 0:02:47]}  O-O {[%clk 0:02:49]} 9. Qe1 {[%clk 0:02:43]}  e5 {[%clk 0:02:45]} 10. fxe5 {[%clk 0:02:37]}  Nb4 {[%clk 0:02:06]} 11. Qe2 {[%clk 0:02:33]}  d4 {[%clk 0:02:05]} 12. exf6 {[%clk 0:02:18]}  dxc3 {[%clk 0:02:04]} 13. fxg7 {[%clk 0:02:18]}  Re8 {[%clk 0:02:03]} 14. bxc3 {[%clk 0:02:16]}  Nd5 {[%clk 0:02:02]} 15. Bd2 {[%clk 0:02:11]}  Bg6 {[%clk 0:01:31]} 16. Nh4 {[%clk 0:02:08]}  Be5 {[%clk 0:01:21]} 17. Nxg6 {[%clk 0:02:06]}  hxg6 {[%clk 0:01:21]} 18. Qf3 {[%clk 0:02:01]}  Nf6 {[%clk 0:01:18]} 19. d4 {[%clk 0:01:57]}  cxd4 {[%clk 0:01:18]} 20. cxd4 {[%clk 0:01:57]}  Bxd4 {[%clk 0:01:17]} 21. exd4 {[%clk 0:01:55]}  Qxd4+ {[%clk 0:01:17]} 22. Qf2 {[%clk 0:01:56]} 1-0


[Site "https://www.chess.com"]

[Event "Titled Tuesday Blitz March 29 Early 2022"]
[White "Kostiukov, Alexandr"]
[Black "Perera Alfonso, Rene Humberto"]
[WhiteFideId "14108100"]
[BlackFideId "3514722"]
[WhiteElo "2202"]
[BlackElo "2313"]
[Result "1-0"]
[Round "03"]
[TimeControl "180+1"]
[Date "2022.03.30"]
[WhiteClock "0:00:48"]
[BlackClock "0:02:30"]

1. g3 {[%clk 0:03:00]}  e5 {[%clk 0:02:58]} 2. Bg2 {[%clk 0:03:01]}  Nc6 {[%clk 0:02:59]} 3. c4 {[%clk 0:03:01]}  f5 {[%clk 0:02:58]} 4. Nc3 {[%clk 0:02:58]}  Nf6 {[%clk 0:02:58]} 5. e3 {[%clk 0:02:58]}  d5 {[%clk 0:02:58]} 6. cxd5 {[%clk 0:02:53]}  Nb4 {[%clk 0:02:58]} 7. d4 {[%clk 0:02:27]}  e4 {[%clk 0:02:57]} 8. Nge2 {[%clk 0:02:20]}  Nbxd5 {[%clk 0:02:56]} 9. O-O {[%clk 0:02:13]}  Be7 {[%clk 0:02:54]} 10. Bd2 {[%clk 0:01:59]}  O-O {[%clk 0:02:53]} 11. Qb3 {[%clk 0:01:55]}  c6 {[%clk 0:02:52]} 12. Nf4 {[%clk 0:01:52]}  Kh8 {[%clk 0:02:49]} 13. Ncxd5 {[%clk 0:01:48]}  cxd5 {[%clk 0:02:50]} 14. h4 {[%clk 0:01:47]}  Bd6 {[%clk 0:02:49]} 15. Bb4 {[%clk 0:01:46]}  Bxb4 {[%clk 0:02:49]} 16. Qxb4 {[%clk 0:01:46]}  b6 {[%clk 0:02:45]} 17. Rfc1 {[%clk 0:01:46]}  Ba6 {[%clk 0:02:44]} 18. Ne6 {[%clk 0:01:45]}  Qe8 {[%clk 0:02:39]} 19. Qxf8+ {[%clk 0:01:41]}  Qxf8 {[%clk 0:02:40]} 20. Nxf8 {[%clk 0:01:41]}  Rxf8 {[%clk 0:02:41]} 21. Rc7 {[%clk 0:01:41]}  Bd3 {[%clk 0:02:40]} 22. Rac1 {[%clk 0:01:35]}  h6 {[%clk 0:02:41]} 23. Rxa7 {[%clk 0:01:35]}  g5 {[%clk 0:02:40]} 24. hxg5 {[%clk 0:01:33]}  hxg5 {[%clk 0:02:41]} 25. Rcc7 {[%clk 0:01:33]}  Kg8 {[%clk 0:02:39]} 26. Bf1 {[%clk 0:01:33]}  Bxf1 {[%clk 0:02:38]} 27. Kxf1 {[%clk 0:01:33]}  f4 {[%clk 0:02:39]} 28. Ke2 {[%clk 0:01:11]}  Ne8 {[%clk 0:02:37]} 29. Rc8 {[%clk 0:01:09]}  fxe3 {[%clk 0:02:36]} 30. fxe3 {[%clk 0:01:08]}  g4 {[%clk 0:02:34]} 31. Raa8 {[%clk 0:01:07]}  Kf7 {[%clk 0:02:35]} 32. a4 {[%clk 0:01:04]}  Rh8 {[%clk 0:02:35]} 33. Ra7+ {[%clk 0:00:47]}  Kf8 {[%clk 0:02:31]} 34. Rxe8+ {[%clk 0:00:47]}  Kxe8 {[%clk 0:02:30]} 35. Ra8+ {[%clk 0:00:48]} 1-0


[Site "https://www.chess.com"]